fUSD/lending_fUSD_20250630
["ID","MTS","AMOUNT","RATE_DAILY","PERIOD"]
[368720960,1751325035059,-316.139491,0.00013898,2]
[368720961,1751325035069,-586.6175,0.00013898,2]
[368720962,1751325035079,-961.87353,0.00013898,2]
[368720963,1751325035090,-881.824233,0.00013898,2]
[368720964,1751325035101,-154.789388,0.00013898,2]
[368720965,1751325035112,-218.586068,0.00013898,2]
[368720966,1751325035123,-2378.5451,0.00013899,2]
[368720967,1751325035134,-1000.0,0.00013899,2]
[368720968,1751325035144,-151.0,0.00013899,2]
[368720969,1751325035155,-316.139491,0.00013899,2]
[368720970,1751325035165,-316.139491,0.00013899,2]
[368720971,1751325035174,-316.139491,0.00013899,2]
[368720972,1751325035184,-316.139491,0.00013899,2]
[368720973,1751325035194,-151.0,0.00013899,2]
[368720974,1751325035204,-151.0,0.00013899,2]
[368720975,1751325035214,-151.0,0.00013899,2]
[368720976,1751325035224,-151.0,0.00013899,2]
[368720977,1751325035234,-151.0,0.00013899,2]
[368720978,1751325035244,-151.0,0.00013899,2]
[368720979,1751325035254,-151.0,0.00013899,2]
[368720980,1751325035264,-266.454737,0.00013899,2]
[368720981,1751325035274,-151.0,0.00013899,2]
[368720982,1751325035284,-151.0,0.00013899,2]
[368720983,1751325035294,-151.0,0.00013899,2]
[368720984,1751325035304,-151.0,0.00013899,2]
[368720985,1751325035314,-151.533717,0.00013899,2]
[368720986,1751325035324,-151.0,0.00013899,2]
[368720987,1751325035334,-151.0,0.00013899,2]
[368720988,1751325035344,-151.0,0.00013899,2]
[368720989,1751325035354,-151.0,0.00013899,2]
[368720990,1751325035363,-151.0,0.00013899,2]
[368720991,1751325035373,-498.41680738,0.00013899,2]
[368720992,1751325035383,-513.69596443,0.00013899,2]
[368720993,1751325035393,-255.82983927,0.00013899,2]
[368720994,1751325035403,-345.62967973,0.00013899,2]
[368720995,1751325035413,-500.0,0.00013899,2]
[368720996,1751325035423,-516.6108459,0.00013899,2]
[368720997,1751325035433,-500.0,0.00013899,2]
[368720998,1751325035443,-500.0,0.00013899,2]
[368720999,1751325035454,-500.0,0.00013899,2]
[368721000,1751325035464,-500.0,0.00013899,2]
[368721001,1751325035474,-500.0,0.00013899,2]
[368721002,1751325035485,-151.0,0.00013899,2]
[368721003,1751325035494,-151.0,0.00013899,2]
[368721004,1751325035504,-151.0,0.00013899,2]
[368721005,1751325035514,-151.0,0.00013899,2]
[368721006,1751325035523,-586.6175,0.00013899,2]
[368721007,1751325035533,-961.87353,0.00013899,2]
[368721008,1751325035549,-881.824233,0.00013899,2]
[368721009,1751325035559,-215.17814182,0.00013899,2]
[368721010,1751325035568,-218.586068,0.00013899,2]
[368721011,1751325035578,-151.0,0.00013899,2]
[368721012,1751325035591,-151.0,0.00013899,2]
[368721013,1751325035606,-151.0,0.00013899,2]
[368721014,1751325035617,-500.0,0.000139,2]
[368721015,1751325035628,-64743.23381392,0.000139,2]
[368721016,1751325035676,-600.0,0.000139,2]
[368721017,1751325035688,-51316.06917381,0.000139,2]
[368721018,1751325035723,-528.5143,0.000139,2]
[368721219,1751325040016,-2145.29001995,0.00013844,2]
[368721222,1751325040027,-543.86340481,0.00013844,2]
[368721224,1751325040039,-3412.49,0.00013844,2]
[368721227,1751325040059,-1217.33691959,0.00013844,2]
[368721229,1751325040070,-750.78902854,0.00013844,2]
[368721232,1751325040087,-18708.74986581,0.00013844,2]
[368721234,1751325040098,-1040.95405841,0.00013844,2]
[368721236,1751325040109,-2137.6,0.00013844,2]
[368721238,1751325040120,-2419.86900619,0.00013844,2]
[368721240,1751325040131,-3528.5203675,0.00013844,2]
[368721245,1751325040163,-75391.07744313,0.00013844,2]
[368721249,1751325040195,-320.88,0.00013844,2]
[368721251,1751325040206,-3289.31446005,0.00013844,2]
[368721253,1751325040217,-737.94291166,0.00013844,2]
[368721255,1751325040228,-620.085039,0.00013844,2]
[368721360,1751325041190,-513.08433858,0.00013844,2]
[368721362,1751325041201,-487.52557497,0.00013844,2]
[368721369,1751325041252,-1305.07234366,0.00013844,2]
[368721371,1751325041262,-886.0,0.00013879,2]
[368721373,1751325041272,-61885.93231227,0.000139,2]
[368721375,1751325041281,-560.21703756,0.000139,2]
[368721377,1751325041291,-151.0,0.000139,2]
[368721379,1751325041301,-151.0,0.000139,2]
[368721381,1751325041311,-150.0,0.000139,2]
[368721383,1751325041320,-316.139491,0.000139,2]
[368721385,1751325041330,-316.139491,0.000139,2]
[368721387,1751325041340,-316.139491,0.000139,2]
[368721389,1751325041350,-316.139491,0.000139,2]
[368721391,1751325041359,-151.0,0.000139,2]
[368721393,1751325041369,-151.0,0.000139,2]
[368721395,1751325041379,-151.0,0.000139,2]
[368721397,1751325041389,-151.0,0.000139,2]
[368721399,1751325041399,-251.544228,0.000139,2]
[368721401,1751325041408,-151.0,0.000139,2]
[368721403,1751325041418,-151.0,0.000139,2]
[368721405,1751325041428,-151.0,0.000139,2]
[368721407,1751325041437,-151.0,0.000139,2]
[368721409,1751325041447,-151.0,0.000139,2]
[368721411,1751325041457,-151.0,0.000139,2]
[368721413,1751325041467,-151.0,0.000139,2]
[368721415,1751325041477,-226.260506,0.000139,2]
[368721417,1751325041486,-151.0,0.000139,2]
[368721419,1751325041496,-151.0,0.000139,2]
[368721421,1751325041505,-187.40180639,0.000139,2]
[368721423,1751325041515,-2651.07087302,0.000139,2]
[368721425,1751325041525,-5296.65193606,0.000139,2]
[368721427,1751325041534,-180.94538407,0.000139,2]
[368721429,1751325041544,-442.33948166,0.000139,2]
[368721431,1751325041553,-151.0,0.000139,2]
[368721433,1751325041562,-151.0,0.000139,2]
[368721435,1751325041572,-799.59,0.000139,2]
[368721437,1751325041582,-796.47,0.000139,2]
[368721439,1751325041592,-151.0,0.000139,2]
[368721441,1751325041605,-151.0,0.000139,2]
[368721443,1751325041615,-226.43685,0.000139,2]
[368721445,1751325041624,-2012.0745038,0.000139,2]
[368721447,1751325041633,-153.89841368,0.000139,2]
[368721449,1751325041644,-700.0,0.00013904,2]
[368721451,1751325041654,-160.16079,0.0001391,2]
[368721453,1751325041664,-316.139491,0.00013922,2]
[368721455,1751325041674,-316.139491,0.00013922,2]
[368721457,1751325041683,-279.838,0.00013925,2]
[368721459,1751325041693,-151.0,0.00013928,2]
[368721461,1751325041702,-316.139491,0.00013928,2]
[368721463,1751325041711,-316.139491,0.00013928,2]
[368721465,1751325041720,-151.0,0.00013928,2]
[368721467,1751325041729,-151.0,0.00013928,2]
[368721469,1751325041739,-151.0,0.00013928,2]
[368721471,1751325041748,-151.0,0.00013928,2]
[368721473,1751325041758,-151.0,0.00013928,2]
[368721475,1751325041767,-230.651014,0.00013928,2]
[368721477,1751325041777,-151.0,0.00013928,2]
[368721479,1751325041786,-273.43129622,0.00013928,2]
[368721481,1751325041795,-151.0,0.00013928,2]
[368721483,1751325041805,-151.0,0.00013928,2]
[368721485,1751325041814,-151.0,0.00013928,2]
[368721487,1751325041824,-151.0,0.00013928,2]
[368721489,1751325041834,-151.0,0.00013928,2]
[368721490,1751325041844,-151.0,0.00013929,2]
[368721491,1751325041853,-151.0,0.00013929,2]
[368721492,1751325041862,-150.36,0.00013929,2]
[368721493,1751325041871,-174.481,0.00013929,2]
[368721494,1751325041881,-150.435,0.00013929,2]
[368721495,1751325041890,-150.0,0.00013929,2]
[368721496,1751325041899,-154.772,0.00013929,2]
[368721497,1751325041907,-219.584,0.00013929,2]
[368721498,1751325041917,-291.73,0.00013929,2]
[368721499,1751325041926,-253.434,0.00013929,2]
[368721500,1751325041935,-250.691,0.00013929,2]
[368721501,1751325041944,-184.67,0.00013929,2]
[368721503,1751325041953,-201.416,0.00013929,2]
[368721504,1751325041962,-158.526,0.00013929,2]
[368721506,1751325041972,-245.219,0.00013929,2]
[368721508,1751325041982,-205.18,0.00013929,2]
[368721510,1751325041991,-1029.739,0.00013929,2]
[368721512,1751325042000,-3341.0,0.00013929,2]
[368721514,1751325042009,-639.0,0.00013929,2]
[368721516,1751325042018,-804.0,0.00013929,2]
[368721518,1751325042028,-316.139491,0.0001393,2]
[368721520,1751325042037,-316.139491,0.0001393,2]
[368721522,1751325042047,-151.0,0.0001393,2]
[368721524,1751325042056,-500.0,0.0001393,2]
[368721527,1751325042066,-500.0,0.0001393,2]
[368721529,1751325042075,-500.0,0.0001393,2]
[368721530,1751325042084,-500.0,0.0001393,2]
[368721532,1751325042093,-500.0,0.0001393,2]
[368721534,1751325042102,-500.0,0.0001393,2]
[368721536,1751325042112,-500.0,0.0001393,2]
[368721538,1751325042121,-500.0,0.0001393,2]
[368721540,1751325042130,-500.0,0.0001393,2]
[368721542,1751325042139,-500.0,0.0001393,2]
[368721544,1751325042148,-500.0,0.0001393,2]
[368721546,1751325042157,-500.0,0.0001393,2]
[368721548,1751325042167,-500.0,0.0001393,2]
[368721550,1751325042176,-500.0,0.0001393,2]
[368721552,1751325042185,-500.0,0.0001393,2]
[368721553,1751325042194,-500.0,0.0001393,2]
[368721556,1751325042204,-500.0,0.0001393,2]
[368721558,1751325042213,-291.2728,0.0001393,2]
[368721559,1751325042223,-151.0,0.00013935,2]
[368721561,1751325042232,-151.0,0.00013935,2]
[368721563,1751325042242,-1000.0,0.00013938,2]
[368721565,1751325042252,-1000.0,0.00013949,2]
[368721567,1751325042261,-586.6175,0.00013971,2]
[368721569,1751325042271,-961.87353,0.00013971,2]
[368721571,1751325042280,-881.824233,0.00013971,2]
[368721573,1751325042289,-218.586068,0.00013971,2]
[368721575,1751325042299,-502.01101058,0.00013973,2]
[368721577,1751325042308,-643.23409207,0.00013973,2]
[368721579,1751325042317,-500.0,0.00013973,2]
[368721581,1751325042327,-500.0,0.00013973,2]
[368721583,1751325042336,-500.0,0.00013973,2]
[368721585,1751325042345,-500.0,0.00013973,2]
[368721587,1751325042355,-500.0,0.00013973,2]
[368721589,1751325042365,-500.0,0.00013973,2]
[368721591,1751325042375,-500.0,0.00013973,2]
[368721593,1751325042385,-500.0,0.00013973,2]
[368721595,1751325042395,-500.0,0.00013973,2]
[368721597,1751325042405,-500.0,0.00013973,2]
[368721599,1751325042415,-500.0,0.00013973,2]
[368721601,1751325042425,-390.17606,0.00013973,2]
[368721603,1751325042436,-777.0,0.00013973,2]
[368721605,1751325042447,-151.0,0.00013973,2]
[368721607,1751325042456,-316.139491,0.00013973,2]
[368721609,1751325042466,-316.139491,0.00013973,2]
[368721611,1751325042476,-151.0,0.00013973,2]
[368721613,1751325042485,-151.0,0.00013973,2]
[368721615,1751325042494,-226.789838,0.00013973,2]
[368721617,1751325042504,-316.139491,0.00013974,2]
[368721619,1751325042513,-316.139489,0.00013974,2]
[368721621,1751325042522,-151.0,0.00013978,2]
[368721623,1751325042531,-151.0,0.00013978,2]
[368721625,1751325042541,-586.6175,0.00013978,2]
[368721627,1751325042550,-961.87353,0.00013978,2]
[368721629,1751325042559,-881.824233,0.00013978,2]
[368721631,1751325042568,-154.789388,0.00013978,2]
[368721633,1751325042577,-157.485263,0.00013978,2]
[368721635,1751325042587,-218.586068,0.00013978,2]
[368721636,1751325042598,-348.94398019,0.0001398,2]
[368721638,1751325042607,-586.6175,0.00013984,2]
[368721640,1751325042616,-961.87353,0.00013984,2]
[368721642,1751325042626,-881.824233,0.00013984,2]
[368721645,1751325042637,-218.586068,0.00013984,2]
[368721647,1751325042648,-1810.04551453,0.00013984,2]
[368721650,1751325042658,-586.6175,0.00013987,2]
[368721652,1751325042669,-586.6175,0.00013987,2]
[368721654,1751325042682,-586.6175,0.00013987,2]
[368721657,1751325042692,-586.6175,0.00013987,2]
[368721658,1751325042702,-961.87353,0.00013987,2]
[368721661,1751325042713,-961.87353,0.00013987,2]
[368721663,1751325042722,-961.87353,0.00013987,2]
[368721665,1751325042732,-961.87353,0.00013987,2]
[368721667,1751325042741,-881.824233,0.00013987,2]
[368721669,1751325042750,-881.824233,0.00013987,2]
[368721671,1751325042759,-881.824233,0.00013987,2]
[368721673,1751325042768,-881.824233,0.00013987,2]
[368721674,1751325042778,-154.789388,0.00013987,2]
[368721677,1751325042787,-218.586068,0.00013987,2]
[368721680,1751325042797,-218.586068,0.00013987,2]
[368721682,1751325042807,-218.586068,0.00013987,2]
[368721683,1751325042817,-218.586068,0.00013987,2]
[368721686,1751325042827,-151.0,0.0001399,2]
[368721688,1751325042836,-482.27147238,0.0001399,2]
[368721690,1751325042845,-482.27147238,0.0001399,2]
[368721692,1751325042855,-482.27147238,0.0001399,2]
[368721694,1751325042863,-586.6175,0.00013996,2]
[368721695,1751325042872,-961.87353,0.00013996,2]
[368721697,1751325042882,-881.824233,0.00013996,2]
[368721700,1751325042891,-154.789388,0.00013996,2]
[368721701,1751325042900,-218.586068,0.00013996,2]
[368721703,1751325042909,-150.0,0.00013998,2]
[368721706,1751325042920,-59678.05466598,0.00013999,2]
[368721708,1751325042934,-873.12058105,0.00013999,2]
[368721710,1751325042945,-4555.95239919,0.00013999,2]
[368721712,1751325042957,-12448.52988865,0.00013999,2]
[368721715,1751325042968,-362.98195036,0.00013999,2]
[368721717,1751325042979,-3000.0,0.00013999,2]
[368721719,1751325042991,-1622.44927575,0.00013999,2]
[368721721,1751325043003,-8763.60942693,0.00013999,2]
[368721723,1751325043015,-6556.32814236,0.00013999,2]
[368721725,1751325043024,-666.0,0.00013999,2]
[368721726,1751325043033,-251.0,0.00013999,2]
[368721727,1751325043043,-1000.0,0.00013999,2]
[368721728,1751325043052,-1000.0,0.00013999,2]
[368721729,1751325043061,-1000.0,0.00013999,2]
[368721730,1751325043071,-1000.0,0.00013999,2]
[368721731,1751325043080,-1000.0,0.00013999,2]
[368721732,1751325043089,-1000.0,0.00013999,2]
[368721733,1751325043099,-1000.0,0.00013999,2]
[368721734,1751325043108,-1000.0,0.00013999,2]
[368721735,1751325043117,-1000.0,0.00013999,2]
[368721736,1751325043126,-1000.0,0.00013999,2]
[368721737,1751325043135,-1000.0,0.00013999,2]
[368721739,1751325043145,-1011.67062305,0.00013999,2]
[368721740,1751325043154,-586.6175,0.00013999,2]
[368721741,1751325043164,-961.87353,0.00013999,2]
[368721742,1751325043175,-881.824233,0.00013999,2]
[368721743,1751325043185,-218.586068,0.00013999,2]
[368721744,1751325043194,-169.0,0.00014,2]
[368721745,1751325043204,-169.0,0.00014,2]
[368721746,1751325043214,-302.0,0.00014,2]
[368721747,1751325043224,-721.92300939,0.00014,2]
[368721748,1751325043233,-169.0,0.00014,2]
[368721749,1751325043243,-169.0,0.00014,2]
[368721750,1751325043253,-170.95396245,0.00014,2]
[368721751,1751325043263,-151.0,0.00014,2]
[368721752,1751325043272,-169.0,0.00014,2]
[368721753,1751325043282,-50852.83858681,0.00014,2]
[368721754,1751325043294,-1781.137005,0.00014,2]
[368721755,1751325043305,-1363.68834929,0.00014,2]
[368721756,1751325043317,-6784.69802647,0.00014,2]
[368721757,1751325043328,-2450.08099561,0.00014,2]
[368721758,1751325043341,-22348.36109602,0.00014,2]
[368721761,1751325043373,-813.072159,0.00014,2]
[368721763,1751325043446,-1409.41316507,0.00014,2]
[368721764,1751325043458,-471.72873836,0.00014,2]
[368721767,1751325043469,-2615.76075088,0.00014,2]
[368721791,1751325044903,-14211.87326162,0.00014,2]
[368721792,1751325044914,-10398.53637781,0.00014,2]
[368721793,1751325044926,-435396.96055247,0.00014,2]
[368721794,1751325045017,-611.20191832,0.00014,2]
[368721795,1751325045028,-254.71326915,0.00014,2]
[368721796,1751325045039,-616.36239535,0.00014,2]
[368721797,1751325045052,-641.99246739,0.00014,2]
[368721798,1751325045063,-565.99524606,0.00014,2]
[368721799,1751325045074,-2519.64120537,0.00014,2]
[368721800,1751325045086,-1284.73205069,0.00014,2]
[368721804,1751325045998,-151.0,0.00013833,2]
[368721805,1751325046008,-1318.33592445,0.00014,2]
[368721806,1751325046020,-65705.68431889,0.00014,2]
[368721807,1751325046031,-566.64999362,0.00014,2]
[368721808,1751325046094,-786.28358789,0.00014,2]
[368721809,1751325046105,-2218.431861,0.00014,2]
[368721811,1751325046167,-242520.59304151,0.00014,2]
[368721817,1751325046222,-1198.7,0.00014,2]
[368721833,1751325046360,-5656.68075049,0.00014,2]
[368721835,1751325046372,-1831.41327984,0.00014,2]
[368721837,1751325046383,-433.97561987,0.00014,2]
[368721842,1751325046422,-1650.00002,0.00014,2]
[368721845,1751325046435,-10324.68347293,0.00014,2]
[368721847,1751325046447,-14057.80151004,0.00014,2]
[368721925,1751325081407,172.69,0.00010556,2]
[368721926,1751325182093,527.0,0.00027397,120]
[368721928,1751325437281,250.0,0.00012957,2]
[368721929,1751325477415,1571.34,0.00012821,2]
[368721931,1751325737125,1000.0,0.00012826,2]
[368721932,1751325759630,500.0,0.00012775,2]
[368721933,1751325762093,171.74,0.00012965,2]
[368721934,1751325799768,525.679411,0.00026283,120]
[368721935,1751325880784,2751.0,0.00012838,2]
[368721936,1751325929978,150.5,0.0002609,120]
[368721937,1751325932480,150.5,0.0002608,120]
[368721938,1751325933325,150.5,0.0002607,120]
[368721943,1751325971744,23127.94,0.00012771,2]
[368721944,1751326007538,367.32,0.00012769,2]
[368721946,1751326010458,295.0,0.00027397,120]
[368722061,1751326231934,-511.0,0.00013129,2]
[368722063,1751326231944,-600.0,0.00013231,2]
[368722065,1751326231953,-1200.0,0.00013231,2]
[368722066,1751326231962,-831.5,0.00013232,2]
[368722067,1751326231978,-639.16242228,0.00013232,2]
[368722068,1751326231989,-451.78206567,0.00013232,2]
[368722070,1751326232007,-580.54091556,0.00013232,2]
[368722071,1751326232102,-550.0,0.00013232,2]
[368722072,1751326232113,-612.17759608,0.00013232,2]
[368722073,1751326232126,-2866.60700041,0.00013232,2]
[368722074,1751326232135,-300.0,0.00013244,2]
[368722075,1751326232144,-244.0,0.00013254,2]
[368722076,1751326232154,-300.0,0.00013255,2]
[368722077,1751326232163,-1177.69,0.00013256,2]
[368722078,1751326232172,-218.60382209,0.00013429,2]
[368722079,1751326232181,-207.4,0.00013436,2]
[368722080,1751326232191,-150.0,0.0001349,2]
[368722081,1751326232200,-500.0,0.00013491,2]
[368722082,1751326232209,-500.0,0.00013491,2]
[368722083,1751326232218,-500.0,0.00013491,2]
[368722084,1751326232227,-500.0,0.00013491,2]
[368722085,1751326232236,-500.0,0.00013491,2]
[368722086,1751326232246,-500.0,0.00013491,2]
[368722087,1751326232255,-300.0,0.00013491,2]
[368722088,1751326232264,-300.0,0.00013491,2]
[368722089,1751326232274,-300.0,0.00013491,2]
[368722091,1751326232283,-300.0,0.00013491,2]
[368722093,1751326232292,-300.0,0.00013491,2]
[368722095,1751326232301,-300.0,0.00013491,2]
[368722097,1751326232311,-300.0,0.00013491,2]
[368722099,1751326232320,-300.0,0.00013491,2]
[368722101,1751326232330,-185.86786949,0.00013491,2]
[368722103,1751326232339,-500.0,0.00013491,2]
[368722105,1751326232348,-500.0,0.00013491,2]
[368722107,1751326232358,-500.0,0.00013491,2]
[368722109,1751326232367,-500.0,0.00013491,2]
[368722111,1751326232376,-300.0,0.00013491,2]
[368722113,1751326232386,-500.0,0.00013491,2]
[368722114,1751326232395,-151.0,0.00013491,2]
[368722117,1751326232404,-500.0,0.00013491,2]
[368722118,1751326232414,-500.0,0.00013491,2]
[368722120,1751326232423,-500.0,0.00013491,2]
[368722121,1751326232432,-500.0,0.00013491,2]
[368722123,1751326232441,-500.0,0.00013491,2]
[368722125,1751326232452,-300.0,0.00013577,2]
[368722128,1751326232461,-225.0,0.00013622,2]
[368722130,1751326232470,-321.0,0.00013652,2]
[368722132,1751326232480,-363.0,0.00013652,2]
[368722134,1751326232489,-1092.0,0.00013659,2]
[368722136,1751326232498,-1221.0,0.00013659,2]
[368722138,1751326232508,-218.0,0.00013676,2]
[368722140,1751326232517,-150.0,0.0001368,2]
[368722142,1751326232526,-150.0,0.0001369,2]
[368722144,1751326232536,-519.65,0.00013699,2]
[368722146,1751326232545,-150.0,0.00013699,2]
[368722148,1751326232555,-179.557887,0.00013719,2]
[368722150,1751326232564,-150.0,0.00013723,2]
[368722152,1751326232573,-1000.0,0.00013726,2]
[368722154,1751326232583,-150.0,0.00013728,2]
[368722156,1751326232592,-150.0,0.00013731,2]
[368722157,1751326232601,-150.0,0.00013735,2]
[368722160,1751326232611,-150.0,0.00013736,2]
[368722162,1751326232620,-150.0,0.00013739,2]
[368722163,1751326232630,-1000.0,0.00013739,2]
[368722165,1751326232639,-150.0,0.00013739,2]
[368722166,1751326232649,-150.0,0.0001374,2]
[368722167,1751326232659,-150.0,0.00013741,2]
[368722168,1751326232668,-150.0,0.00013741,2]
[368722169,1751326232678,-150.0,0.00013741,2]
[368722170,1751326232687,-1000.0,0.00013742,2]
[368722171,1751326232697,-150.0,0.00013745,2]
[368722172,1751326232707,-150.0,0.00013747,2]
[368722173,1751326232716,-150.0,0.00013748,2]
[368722174,1751326232726,-150.0,0.0001375,2]
[368722175,1751326232736,-150.0,0.00013759,2]
[368722176,1751326232745,-150.0,0.00013759,2]
[368722177,1751326232754,-150.0,0.00013759,2]
[368722178,1751326232764,-150.0,0.00013761,2]
[368722179,1751326232774,-150.0,0.00013766,2]
[368722180,1751326232783,-150.0,0.00013769,2]
[368722181,1751326233227,-150.0,0.0001377,2]
[368722182,1751326233262,-150.0,0.00013772,2]
[368722183,1751326233272,-150.0,0.00013773,2]
[368722184,1751326233283,-150.0,0.00013773,2]
[368722185,1751326233293,-150.0,0.00013775,2]
[368722186,1751326233303,-150.0,0.00013777,2]
[368722187,1751326233312,-150.0,0.00013781,2]
[368722188,1751326233322,-150.0,0.00013782,2]
[368722189,1751326233332,-1000.0,0.00013783,2]
[368722190,1751326233341,-1000.0,0.00013785,2]
[368722191,1751326233351,-532.64516901,0.00013785,2]
[368722192,1751326233360,-150.0,0.00013795,2]
[368722193,1751326233370,-150.0,0.00013796,2]
[368722194,1751326233379,-835.8297818,0.00013797,2]
[368722195,1751326233389,-799.59,0.000138,2]
[368722196,1751326233399,-799.59,0.000138,2]
[368722197,1751326233408,-253.86142375,0.000138,2]
[368722198,1751326233417,-156.11981717,0.000138,2]
[368722199,1751326233427,-2500.0,0.000138,2]
[368722200,1751326233437,-1000.0,0.00013801,2]
[368722201,1751326233446,-150.0,0.00013803,2]
[368722202,1751326233457,-150.0,0.00013803,2]
[368722203,1751326233467,-156.11981705,0.00013806,2]
[368722204,1751326233477,-1000.0,0.00013811,2]
[368722205,1751326233487,-150.0,0.00013812,2]
[368722206,1751326233498,-150.0,0.00013812,2]
[368722207,1751326233509,-156.11981705,0.00013813,2]
[368722208,1751326233519,-150.0,0.00013814,2]
[368722209,1751326233529,-1000.0,0.00013818,2]
[368722210,1751326233539,-156.11981705,0.00013819,2]
[368722211,1751326233549,-150.0,0.00013822,2]
[368722212,1751326233559,-156.11981705,0.00013825,2]
[368722213,1751326233569,-150.0,0.00013827,2]
[368722214,1751326233579,-150.0,0.00013831,2]
[368722215,1751326233589,-150.0,0.00013831,2]
[368722216,1751326233598,-156.11981705,0.00013831,2]
[368722217,1751326233608,-150.0,0.00013832,2]
[368722218,1751326233619,-150.0,0.00013832,2]
[368722219,1751326233628,-150.0,0.00013835,2]
[368722220,1751326233638,-156.11981705,0.00013838,2]
[368722221,1751326233648,-150.0,0.00013838,2]
[368722222,1751326233659,-156.11981705,0.00013844,2]
[368722223,1751326233669,-150.0,0.00013845,2]
[368722224,1751326233679,-150.0,0.00013847,2]
[368722225,1751326233689,-150.0,0.00013848,2]
[368722226,1751326233698,-150.0,0.00013848,2]
[368722227,1751326233708,-1000.0,0.00013849,2]
[368722228,1751326233718,-156.11981705,0.0001385,2]
[368722229,1751326233727,-304.57379915,0.00013856,2]
[368722230,1751326233737,-156.11981705,0.00013856,2]
[368722231,1751326233746,-1000.0,0.00013857,2]
[368722232,1751326233756,-979.97379,0.0001386,2]
[368722233,1751326233766,-150.0,0.00013862,2]
[368722234,1751326233776,-156.11981705,0.00013863,2]
[368722235,1751326233786,-150.0,0.00013864,2]
[368722236,1751326233795,-150.0,0.00013864,2]
[368722237,1751326233806,-150.0,0.00013865,2]
[368722238,1751326233815,-150.0,0.00013866,2]
[368722239,1751326233825,-500.0,0.00013866,2]
[368722240,1751326233834,-150.0,0.00013866,2]
[368722241,1751326233844,-500.0,0.00013866,2]
[368722242,1751326233854,-500.0,0.00013866,2]
[368722243,1751326233864,-4043.0,0.00013866,2]
[368722244,1751326233874,-599.0,0.00013866,2]
[368722245,1751326233884,-216.05154647,0.00013866,2]
[368722246,1751326233893,-150.0,0.00013866,2]
[368722247,1751326233903,-500.0,0.00013866,2]
[368722248,1751326233913,-500.0,0.00013866,2]
[368722249,1751326233923,-3120.0,0.00013866,2]
[368722250,1751326233932,-154.55479508,0.00013866,2]
[368722251,1751326233941,-500.0,0.00013866,2]
[368722252,1751326233951,-500.0,0.00013866,2]
[368722253,1751326233961,-150.0,0.00013866,2]
[368722254,1751326233970,-1303.0,0.00013866,2]
[368722255,1751326233982,-150.0,0.00013868,2]
[368722256,1751326233992,-150.0,0.00013868,2]
[368722257,1751326234002,-156.11981705,0.00013869,2]
[368722258,1751326234011,-150.0,0.0001387,2]
[368722259,1751326234023,-150.0,0.0001387,2]
[368722260,1751326234032,-150.0,0.00013875,2]
[368722261,1751326234041,-156.11981705,0.00013875,2]
[368722262,1751326234052,-150.0,0.00013879,2]
[368722263,1751326234062,-4141.58217222,0.00013879,2]
[368722264,1751326234071,-150.0,0.00013881,2]
[368722265,1751326234080,-156.11981705,0.00013881,2]